[Event "44th Chess Olympiad Open 2022"]
[Site "Chennai"]
[Date "2022.08.05"]
[Round "7.58"]
[White "El Jawich, Amro"]
[Black "Diarra, Sirike"]
[Result "1-0"]
[ECO "B30"]
[WhiteElo "2314"]
[BlackElo "1641"]
[Annotator "TA"]
[PlyCount "46"]
[EventDate "2022.07.29"]
[EventType "team-tourn"]
[EventCountry "IND"]
[SourceTitle "playchess.com"]
[Source "ChessBase"]
[SourceQuality "1"]
[WhiteTeam "Lebanon"]
[BlackTeam "Mali"]
[WhiteTeamCountry "LBN"]
[BlackTeamCountry "MLI"]
[TimeControl "40/5400+30:1800+30"]

{[%evp 9,46,13,41,15,61,66,75,68,71,58,57,68,100,84,89,91,183,191,202,198,236,251,259,241,469,332,636,627,615,604,882,881,852,810,1834,1718,29991,29992,29991]} 1. e4 {[%emt 0:00:05][%cal Be2e4,Be4e5][%mdl 32]} c5 {[%emt 0:00:15]} 2. Nf3 {[%emt 0:00:54]} Nc6 {[%emt 0:00:28]} 3. Bb5 {[%emt 0:03:06]} Nf6 {[%emt 0:01:28]} 4. e5 {[%emt 0:02:15]} Nd5 {[%emt 0:00:30]} 5. O-O {[%emt 0:01:39]} e6 {[%emt 0:00:46]} 6. c4 {[%emt 0:09:31] B30: Sicilian: 2...Nc6 3 Bb5, lines without ...g6.} Nc7 {[%emt 0:02:07]} (6... Ndb4 $11) 7. Bxc6 $14 {[%emt 0:01:14]} bxc6 {[%emt 0:00:50]} 8. Nc3 {[%emt 0:05:26] White is better.} Be7 {[%emt 0:00:43] [#]} 9. b3 $146 {[%emt 0:13:45]} ({Predecessor:} 9. Ne4 O-O 10. d3 Rb8 11. b3 d6 12. exd6 Bxd6 13. d4 cxd4 14. Qxd4 Be7 15. Qxa7 {1-0 (24) Kerecsenyi,Z (1298)-Jokmin,A (1172) LSS email 2009}) 9... O-O {[%emt 0:00:30]} 10. Ba3 {[%emt 0:01:32]} Na6 {[%emt 0:00:35]} 11. Ne4 {[%emt 0:02:06]} f5 {[%emt 0:03:21]} 12. Nd6 {[%emt 0:02:59] White is more active.} Bxd6 {[%emt 0:01:04]} (12... Qa5 $16 13. Bc1 Rb8) 13. exd6 $18 {[%emt 0:00:02]} Qf6 {[%emt 0:00:47]} 14. Re1 {[%emt 0:07:04][%cal Bf1e1,Be1e3,Be3h3,Bh3h5][%mdl 32] Prevents e5.} Bb7 {[%emt 0:02:03]} 15. Ne5 {[%emt 0:04:21]} Rad8 {[%emt 0:01:41]} 16. Bb2 {[%emt 0:01:13]} Qh6 $2 {[%emt 0:01:33]} (16... Qg5 {was necessary.} 17. Bc3 Ra8 18. Nxd7 Rfd8) 17. Bc3 {[%emt 0:01:45] [#] Strongly threatening Re3.} Bc8 $2 {[%emt 0:00:47]} (17... g6 18. Ba5 Qh4) 18. Re3 {[%emt 0:03:03]} f4 {[%emt 0:01:40]} 19. Rh3 {[%emt 0:00:51]} Qg5 {[%emt 0:00:17]} 20. Rh5 {[%emt 0:01:40]} Qf6 {[%emt 0:06:54]} 21. Qc2 {[%emt 0:04:36][%csl Gh5][%cal Rc2h7] [#]} g6 {[%emt 0:03:54]} 22. Ng4 {[%emt 0:01:48]} Nb4 {[%emt 0:01:17]} 23. Bxf6 {[%emt 0:01:52]} Rxf6 {[%emt 0:02:02] Black got outplayed after the opening.  Weighted Error Value: White=0.11 (very precise) /Black=0.99} 1-0

[Event "44th Chess Olympiad Open 2022"]
[Site "Chennai"]
[Date "2022.08.05"]
[Round "7.58"]
[White "Traore, Bakary"]
[Black "Kaloust, Giorgio"]
[Result "1/2-1/2"]
[ECO "B13"]
[WhiteElo "2181"]
[BlackElo "1942"]
[Annotator "NA RC"]
[PlyCount "70"]
[EventDate "2022.07.29"]
[EventType "team-tourn"]
[EventCountry "IND"]
[SourceTitle "playchess.com"]
[Source "ChessBase"]
[SourceQuality "1"]
[WhiteTeam "Mali"]
[BlackTeam "Lebanon"]
[WhiteTeamCountry "MLI"]
[BlackTeamCountry "LBN"]
[TimeControl "40/5400+30:1800+30"]

1. e4 {[%emt 0:00:07]} c6 {[%emt 0:00:09]} 2. d4 {[%emt 0:00:31]} d5 {[%emt 0:00:06]} 3. exd5 {[%emt 0:00:55]} cxd5 {[%emt 0:00:07]} 4. c4 {[%emt 0:00:06]} Nf6 {[%emt 0:00:10]} 5. Nc3 {[%emt 0:00:06]} Nc6 {[%emt 0:00:11]} 6. Nf3 {[%emt 0:02:15]} Bg4 {[%emt 0:00:09]} 7. cxd5 {[%emt 0:10:29]} Nxd5 {[%emt 0:00:12]} 8. Qb3 {[%emt 0:00:45]} Nb6 {[%emt 0:10:27]} 9. d5 {[%emt 0:09:58]} Bxf3 {[%emt 0:03:44]} 10. gxf3 {[%emt 0:00:21]} Nd4 {[%emt 0:21:44]} 11. Qd1 {[%emt 0:01:34]} e5 {[%emt 0:03:19]} 12. dxe6 {[%emt 0:00:33]} Nxe6 {[%emt 0:05:21]} 13. Bb5+ {[%emt 0:01:26]} Nd7 {[%emt 0:00:39]} 14. Be3 {[%emt 0:00:29]} a6 {[%emt 0:03:40]} 15. Bxd7+ {[%emt 0:00:39]} Qxd7 {[%emt 0:00:07]} 16. Qxd7+ {[%emt 0:00:25]} Kxd7 {[%emt 0:00:02]} 17. O-O-O+ {[%emt 0:00:31]} Kc6 {[%emt 0:04:49]} 18. Rd3 {[%emt 0:01:50]} Bc5 {[%emt 0:04:18]} 19. Ne4 {[%emt 0:01:15]} Bxe3+ {[%emt 0:02:11]} 20. fxe3 {[%emt 0:00:19]} Rhd8 {[%emt 0:03:18]} 21. Rhd1 {[%emt 0:01:18]} Rxd3 {[%emt 0:00:51]} 22. Rxd3 {[%emt 0:00:02]} Rd8 {[%emt 0:03:09]} 23. Rxd8 {[%emt 0:01:16]} Nxd8 {[%emt 0:00:02]} 24. Kc2 {[%emt 0:00:12]} Ne6 {[%emt 0:01:51]} 25. Kd3 {[%emt 0:01:29]} Nc5+ {[%emt 0:05:33]} 26. Kd4 {[%emt 0:00:15]} Nxe4 {[%emt 0:00:14]} 27. Kxe4 {[%emt 0:00:03]} Kd6 {[%emt 0:02:01]} 28. Kd4 {[%emt 0:00:25]} g5 {[%emt 0:05:18]} 29. e4 {[%emt 0:13:12]} f6 {[%emt 0:01:13]} 30. a4 {[%emt 0:00:23]} b6 {[%emt 0:02:13]} 31. b3 {[%emt 0:00:34]} h6 {[%emt 0:03:03]} 32. b4 {[%emt 0:00:28]} h5 {[%emt 0:04:37]} 33. h3 {[%emt 0:04:57]} h4 {[%emt 0:07:34]} 34. a5 {[%emt 0:00:04]} b5 35. Ke3 {[%emt 0:00:01]} Ke5 {[%emt 0:00:01]} 1/2-1/2

[Event "44th Chess Olympiad Open 2022"]
[Site "Chennai"]
[Date "2022.08.05"]
[Round "7.58"]
[White "Khoder, Akram"]
[Black "Coulibaly, Abdoulaye"]
[Result "1-0"]
[ECO "D11"]
[WhiteElo "2038"]
[BlackElo "1936"]
[Annotator "TA"]
[PlyCount "83"]
[EventDate "2022.07.29"]
[EventType "team-tourn"]
[EventCountry "IND"]
[SourceTitle "playchess.com"]
[Source "ChessBase"]
[SourceQuality "1"]
[WhiteTeam "Lebanon"]
[BlackTeam "Mali"]
[WhiteTeamCountry "LBN"]
[BlackTeamCountry "MLI"]
[TimeControl "40/5400+30:1800+30"]

{[%evp 9,83,32,34,37,44,33,40,4,67,67,78,71,120,106,102,31,92,91,113,55,113,105,117,97,270,268,223,203,212,187,165,148,153,163,164,164,151,158,164,145,186,178,468,468,464,458,549,564,665,585,1148,1157,1177,972,1029,1029,1044,1041,997,926,1126,1116,1443,1502,1369,1209,1209,1199,1187,1166,12841,12841,12841,12842,12842,12843]} 1. d4 {[%emt 0:00:05]} d5 {[%emt 0:00:10]} 2. c4 {[%emt 0:00:06]} c6 {[%emt 0:00:06]} 3. Nf3 {[%emt 0:00:04]} Nf6 {[%emt 0:00:25]} 4. Qc2 {[%emt 0:00:09]} Bg4 {[%emt 0:02:15]} 5. Ne5 {[%emt 0:00:07]} Bh5 {[%emt 0:00:25]} 6. cxd5 {[%emt 0:01:16] D11: Slav Defence: 3 Nf3 sidelines and 3...Nf6 4 e3 Bg4.} Qxd5 {[%emt 0:01:50]} 7. e3 {[%emt 0:00:34][%cal Be2e3,Be3e4][%mdl 32]} e6 {[%emt 0:00:32]} 8. Bd2 {[%emt 0:02:29] Active counter play! White is slightly better.} Bg6 {[%emt 0:03:55]} (8... Qd8 $11) 9. Nxg6 $14 {[%emt 0:00:31]} hxg6 {[%emt 0:00:18]} 10. Nc3 {[%emt 0:00:12] [#]} Qf5 $146 {[%emt 0:01:57]} (10... Qd6 $142) ({Predecessor:} 10... Qd6 11. Qb3 Qb4 12. Qxb4 Bxb4 13. a3 Bd6 14. Be2 Nbd7 15. h3 Nb6 16. O-O e5 17. dxe5 Bxe5 {1-0 (24) Doroshkievich,V (2370)-Ljubarskij,J (2340) Sochi 1998}) 11. e4 $16 {[%emt 0:03:46]} Qa5 {[%emt 0:02:22]} 12. Bd3 {[%emt 0:01:46]} (12. Be2 $16) 12... Qc7 {[%emt 0:02:06]} (12... Na6 $14) 13. h3 {[%emt 0:00:24]} Nbd7 {[%emt 0:00:25]} 14. Rc1 {[%emt 0:05:04]} ({Better is} 14. e5 $16) 14... Nb6 {[%emt 0:02:06]} (14... Qb6 $14) 15. Ne2 {[%emt 0:07:06]} Be7 {[%emt 0:01:24]} 16. O-O {[%emt 0:00:33]} O-O-O $2 {[%emt 0:09:04] Loses the game.} (16... O-O $16) 17. Bf4 $18 {[%emt 0:00:14]} Qd7 {[%emt 0:00:30]} 18. Qb3 {[%emt 0:04:14][%cal Oc1c6] [#] And now Rxc6+! would win.} Nh5 {[%emt 0:03:51]} 19. Rxc6+ {[%emt 0:02:31]} Qxc6 {[%emt 0:00:44]} 20. Rc1 {[%emt 0:00:06]} Nxf4 {[%emt 0:00:47]} 21. Rxc6+ {[%emt 0:00:10]} bxc6 {[%emt 0:00:11]} 22. Nxf4 {[%emt 0:00:08]} Rxd4 {[%emt 0:00:27] [#]} 23. Qc3 $1 $36 {[%emt 0:00:23][%csl LRc6,LRd4][%mdl 2048] Black is under strong pressure.} c5 {[%emt 0:05:16]} 24. Ne2 {[%emt 0:00:26]} Rd7 {[%emt 0:00:52][%cal Oc5c4]} 25. Qxg7 {[%emt 0:02:10]} Rhd8 $2 {[%emt 0:01:17]} (25... Rf8) 26. Ba6+ {[%emt 0:00:24] White is clearly winning.} Kb8 {[%emt 0:00:27]} 27. Qxf7 {[%emt 0:02:07]} Rf8 {[%emt 0:01:58]} 28. Qxe6 {[%emt 0:00:25]} Rd1+ {[%emt 0:00:46]} 29. Kh2 {[%emt 0:00:07]} Bd6+ {[%emt 0:00:30]} 30. e5 {[%emt 0:00:15]} Bc7 {[%emt 0:00:33]} 31. f4 {[%emt 0:00:13] Threatening mate with Qc6.} Rd7 {[%emt 0:02:18]} 32. Qc6 {[%emt 0:00:14][%csl Ga6][%cal Rc6b7]} Bd8 {[%emt 0:00:19]} 33. Qxc5 {[%emt 0:00:55]} Be7 {[%emt 0:00:17]} 34. Qc6 {[%emt 0:00:21]} g5 {[%emt 0:00:11]} 35. a4 {[%emt 0:01:48][%cal Ba2a4,Ba4a5][%mdl 32]} gxf4 {[%emt 0:00:57]} 36. a5 {[%emt 0:00:25]} Rc7 {[%emt 0:00:10]} 37. Qe4 {[%emt 0:00:08]} Nd7 {[%emt 0:01:06]} 38. Nxf4 {[%emt 0:03:10]} Nc5 {[%emt 0:00:35] Inhibits Ne6.} 39. Qb4+ {[%emt 0:00:12]} Ka8 {[%emt 0:00:49]} 40. Nd5 {[%emt 0:00:10][%cal Rd5c7]} Nxa6 {[%emt 0:00:36]} 41. Nxc7+ {[%emt 0:30:03]} Nxc7 {[%emt 0:30:02]} 42. Qxe7 {[%emt 0:00:07] Weighted Error Value: White=0.12 (very precise) /Black=0.56} 1-0

[Event "44th Chess Olympiad Open 2022"]
[Site "Chennai"]
[Date "2022.08.05"]
[Round "7.58"]
[White "Maiga, Baba Moulaye Abdalla"]
[Black "Kassis, Antoine"]
[Result "0-1"]
[ECO "B20"]
[WhiteElo "1822"]
[BlackElo "2202"]
[Annotator "NA RC"]
[PlyCount "80"]
[EventDate "2022.07.29"]
[EventType "team-tourn"]
[EventCountry "IND"]
[SourceTitle "playchess.com"]
[Source "ChessBase"]
[SourceQuality "1"]
[WhiteTeam "Mali"]
[BlackTeam "Lebanon"]
[WhiteTeamCountry "MLI"]
[BlackTeamCountry "LBN"]
[TimeControl "40/5400+30:1800+30"]

1. e4 {[%emt 0:00:02]} c5 {[%emt 0:00:05]} 2. Nf3 {[%emt 0:00:03]} e6 {[%emt 0:00:59]} 3. Nc3 {[%emt 0:00:21]} a6 {[%emt 0:00:33]} 4. a4 {[%emt 0:00:04]} Nc6 {[%emt 0:00:27]} 5. Bc4 {[%emt 0:00:03]} Nf6 {[%emt 0:00:25]} 6. d3 {[%emt 0:00:02]} d5 {[%emt 0:00:20]} 7. exd5 {[%emt 0:01:50]} exd5 {[%emt 0:00:10]} 8. Ba2 {[%emt 0:00:47]} Be7 {[%emt 0:00:10]} 9. O-O {[%emt 0:00:06]} O-O {[%emt 0:14:24]} 10. h3 {[%emt 0:00:22]} h6 {[%emt 0:00:44]} 11. Ne2 {[%emt 0:02:25]} b5 {[%emt 0:06:18]} 12. c3 {[%emt 0:04:42]} Bf5 {[%emt 0:01:10]} 13. Ng3 {[%emt 0:03:12]} Bh7 {[%emt 0:00:29]} 14. Bb1 {[%emt 0:02:32]} Bd6 {[%emt 0:13:57]} 15. Ne2 {[%emt 0:15:41]} Qc7 {[%emt 0:01:20]} 16. Be3 {[%emt 0:08:30]} b4 {[%emt 0:04:43]} 17. Qd2 {[%emt 0:02:56]} Na5 {[%emt 0:00:45]} 18. Bf4 {[%emt 0:03:27]} Nb3 {[%emt 0:01:29]} 19. Bxd6 {[%emt 0:00:06]} Qxd6 {[%emt 0:00:10]} 20. Qd1 {[%emt 0:01:39]} Nxa1 {[%emt 0:00:52]} 21. b3 {[%emt 0:00:10]} bxc3 {[%emt 0:03:15]} 22. Nxc3 {[%emt 0:00:23]} d4 {[%emt 0:07:55]} 23. Ne2 {[%emt 0:01:10]} Nd5 {[%emt 0:10:04]} 24. Ba2 {[%emt 0:00:27]} Nb4 {[%emt 0:00:12]} 25. Qxa1 {[%emt 0:00:14]} Bxd3 {[%emt 0:00:07]} 26. Qb2 {[%emt 0:00:50]} Rfe8 {[%emt 0:00:50]} 27. Ng3 {[%emt 0:06:29]} Bxf1 {[%emt 0:00:33]} 28. Kxf1 {[%emt 0:01:05]} Nxa2 {[%emt 0:04:39]} 29. Qxa2 {[%emt 0:00:11]} Rab8 {[%emt 0:01:48]} 30. Qc2 {[%emt 0:01:30]} Qd5 {[%emt 0:05:48]} 31. Nd2 {[%emt 0:00:44]} d3 {[%emt 0:03:11]} 32. Qd1 {[%emt 0:07:36]} Qe6 {[%emt 0:03:06]} 33. Nge4 {[%emt 0:05:09]} Qe5 {[%emt 0:01:46]} 34. Ng3 {[%emt 0:03:56]} f5 {[%emt 0:01:54]} 35. Kg1 {[%emt 0:03:03]} Qe1+ {[%emt 0:00:07]} 36. Qxe1 {[%emt 0:00:04]} Rxe1+ {[%emt 0:00:05]} 37. Ngf1 {[%emt 0:02:38]} Rbe8 {[%emt 0:01:44]} 38. g3 {[%emt 0:00:49]} R8e2 {[%emt 0:00:28]} 39. Kg2 {[%emt 0:00:06]} Rxf1 {[%emt 0:00:32]} 40. Nxf1 {[%emt 0:00:07]} d2 {[%emt 0:00:05]} 0-1

[Event "44th Chess Olympiad Open 2022"]
[Site "Chennai"]
[Date "2022.08.05"]
[Round "7.59"]
[White "Kett, Tim"]
[Black "Hassan Sidi Mohamed Cheikh"]
[Result "1/2-1/2"]
[ECO "A07"]
[WhiteElo "2197"]
[BlackElo "1825"]
[Annotator "NA RC"]
[PlyCount "121"]
[EventDate "2022.07.29"]
[EventType "team-tourn"]
[EventCountry "IND"]
[SourceTitle "playchess.com"]
[Source "ChessBase"]
[SourceQuality "1"]
[WhiteTeam "Wales"]
[BlackTeam "MTN"]
[WhiteTeamCountry "WLS"]
[TimeControl "40/5400+30:1800+30"]

1. Nf3 {[%emt 0:00:06]} d5 {[%emt 0:00:24]} 2. b3 {[%emt 0:00:08]} Nf6 {[%emt 0:00:49]} 3. Bb2 {[%emt 0:00:11]} Bf5 {[%emt 0:01:25]} 4. g3 {[%emt 0:00:28]} e6 {[%emt 0:00:18]} 5. Bg2 {[%emt 0:00:22]} Be7 {[%emt 0:00:23]} 6. O-O {[%emt 0:00:22]} h6 {[%emt 0:00:25]} 7. d3 {[%emt 0:00:19]} O-O {[%emt 0:00:28]} 8. Nbd2 {[%emt 0:00:20]} Nbd7 {[%emt 0:02:42]} 9. Re1 {[%emt 0:05:16]} Bh7 {[%emt 0:04:35]} 10. e4 {[%emt 0:01:33]} dxe4 {[%emt 0:00:16]} 11. dxe4 {[%emt 0:00:31]} c6 {[%emt 0:02:37]} 12. Qe2 {[%emt 0:05:14]} Qc7 {[%emt 0:07:29]} 13. e5 {[%emt 0:05:53]} Nd5 {[%emt 0:00:26]} 14. Ne4 {[%emt 0:12:29]} Nc5 {[%emt 0:03:42]} 15. Nfd2 {[%emt 0:04:43]} Rad8 {[%emt 0:06:27]} 16. a3 {[%emt 0:04:51]} Rd7 {[%emt 0:05:00]} 17. Nxc5 {[%emt 0:07:41]} Bxc5 {[%emt 0:00:12]} 18. Ne4 {[%emt 0:00:11]} Bxe4 {[%emt 0:06:21]} 19. Qxe4 {[%emt 0:00:55]} Rfd8 {[%emt 0:00:21]} 20. b4 {[%emt 0:13:02]} Qb6 {[%emt 0:05:50]} 21. Re2 {[%emt 0:01:09]} Ne7 {[%emt 0:04:12]} 22. Rf1 {[%emt 0:11:03]} Ng6 {[%emt 0:03:22]} 23. c3 {[%emt 0:10:16]} Bf8 {[%emt 0:01:24]} 24. Bc1 {[%emt 0:01:13]} Rd3 {[%emt 0:04:24]} 25. Be3 {[%emt 0:02:11]} Qb5 {[%emt 0:05:17]} 26. Bd4 {[%emt 0:02:07]} c5 {[%emt 0:00:17]} 27. a4 {[%emt 0:02:12]} Qc4 {[%emt 0:02:47]} 28. Bxc5 {[%emt 0:00:59]} Qxe4 {[%emt 0:03:19]} 29. Bxe4 {[%emt 0:00:15]} Rxc3 {[%emt 0:00:09]} 30. Bxf8 {[%emt 0:01:20]} Kxf8 {[%emt 0:00:58]} 31. f4 {[%emt 0:04:41]} Rd4 {[%emt 0:03:34]} 32. b5 {[%emt 0:01:32]} b6 {[%emt 0:01:05]} 33. Bc6 {[%emt 0:01:18]} Ne7 {[%emt 0:00:52]} 34. Bg2 {[%emt 0:00:38]} Rcc4 {[%emt 0:05:10]} 35. Ra1 {[%emt 0:00:47]} Rxa4 {[%emt 0:00:12]} 36. Rxa4 {[%emt 0:00:35]} Rxa4 {[%emt 0:00:02]} 37. Rc2 {[%emt 0:01:19]} Nd5 {[%emt 0:07:06]} 38. Bxd5 {[%emt 0:00:13]} exd5 {[%emt 0:00:07]} 39. Rc7 {[%emt 0:00:08]} Ke8 {[%emt 0:00:47]} 40. Kf2 {[%emt 0:00:33]} Ra3 {[%emt 0:02:41]} 41. f5 {[%emt 0:31:03]} d4 {[%emt 0:36:52]} 42. Rb7 {[%emt 0:00:00]} Re3 {[%emt 0:00:00]} 43. Rb8+ {[%emt 0:00:00]} Kd7 {[%emt 0:00:00]} 44. Rb7+ {[%emt 0:00:00]} Kc8 {[%emt 0:00:00]} 45. Rxf7 {[%emt 0:00:00]} Rxe5 {[%emt 0:00:00]} 46. g4 {[%emt 0:00:00]} d3 {[%emt 0:00:00]} 47. Rxa7 {[%emt 0:00:00]} Re4 {[%emt 0:00:00]} 48. h3 {[%emt 0:00:00]} h5 {[%emt 0:00:00]} 49. gxh5 {[%emt 0:00:00]} d2 {[%emt 0:00:00]} 50. Ra1 {[%emt 0:00:00]} Rf4+ {[%emt 0:00:00]} 51. Ke3 {[%emt 0:00:00]} Rxf5 {[%emt 0:00:00]} 52. Kxd2 {[%emt 0:00:00]} Rxb5 {[%emt 0:00:00]} 53. Rg1 {[%emt 0:00:00]} Rxh5 {[%emt 0:00:00]} 54. Rxg7 {[%emt 0:00:00]} Rxh3 {[%emt 0:00:00]} 55. Kc2 {[%emt 0:00:00]} Rf3 {[%emt 0:00:00]} 56. Rh7 {[%emt 0:00:00]} Rg3 {[%emt 0:00:00]} 57. Rf7 {[%emt 0:00:00]} Rg5 {[%emt 0:00:00]} 58. Kc3 {[%emt 0:00:00]} Rc5+ {[%emt 0:00:14]} 59. Kb4 {[%emt 0:00:22]} Rg5 {[%emt 0:00:14]} 60. Rh7 {[%emt 0:00:00]} Rf5 {[%emt 0:00:13]} 61. Rg7 {[%emt 0:00:00]} 1/2-1/2

[Event "44th Chess Olympiad Open 2022"]
[Site "Chennai"]
[Date "2022.08.05"]
[Round "7.59"]
[White "Pleasants, Allan J"]
[Black "Boidiya, Sidi"]
[Result "0-1"]
[ECO "D05"]
[WhiteElo "2024"]
[BlackElo "1997"]
[Annotator "TA"]
[PlyCount "64"]
[EventDate "2022.07.29"]
[EventType "team-tourn"]
[EventCountry "IND"]
[SourceTitle "playchess.com"]
[Source "ChessBase"]
[SourceQuality "1"]
[WhiteTeam "Wales"]
[BlackTeam "MTN"]
[WhiteTeamCountry "WLS"]
[TimeControl "40/5400+30:1800+30"]

{[%evp 11,64,12,17,-29,47,50,41,39,45,37,54,46,54,47,59,18,17,20,25,14,24,8,25,-161,-136,-305,-302,-302,-121,-233,-68,-91,-80,-108,-108,-135,-133,-135,-140,-142,-64,-47,-10,-50,-41,-114,-122,-381,-371,-377,-188,-251,-270,-243,-252]} 1. Nf3 {[%emt 0:00:04]} d5 {[%emt 0:00:06]} 2. d4 {[%emt 0:00:41]} Nf6 {[%emt 0:00:27]} 3. e3 {[%emt 0:00:10]} e6 {[%emt 0:00:05]} 4. Bd3 {[%emt 0:01:00]} Nbd7 {[%emt 0:00:23]} 5. Nbd2 {[%emt 0:05:00]} c5 {[%emt 0:00:55]} 6. c3 {[%emt 0:05:20]} Bd6 {[%emt 0:01:45]} 7. Qe2 {[%emt 0:02:31] D05: Colle System with ...e6.} (7. O-O {is more appropriate.}) 7... cxd4 {[%emt 0:02:06]} (7... O-O $11) 8. exd4 $14 {[%emt 0:07:42]} Qc7 {[%emt 0:00:39]} 9. O-O {[%emt 0:05:01] White is slightly better.} O-O {[%emt 0:00:38]} 10. Re1 {[%emt 0:01:30]} b6 {[%emt 0:02:44]} 11. Ne5 {[%emt 0:02:15]} Bb7 {[%emt 0:00:09]} 12. f4 {[%emt 0:05:46]} Rfe8 {[%emt 0:00:24] [#]} 13. Ndf3 $146 {[%emt 0:01:09]} ({Predecessor:} 13. g4 g6 14. a4 a6 15. Qg2 Rf8 16. h4 Rae8 17. h5 gxh5 18. g5 Ne4 19. Be2 {1-0 (51) Nyberg,W (2100)-Loffler,W (2062) GER email 2012}) 13... Nf8 {[%emt 0:02:33]} 14. Ng5 {[%emt 0:08:46]} Re7 {[%emt 0:00:45]} 15. g4 {[%emt 0:11:26]} h6 {[%emt 0:01:13][%cal Bh7h6,Bh6g5][%mdl 32]} 16. Ngf3 {[%emt 0:01:43]} Ne4 {[%emt 0:03:29][%cal Og7g5]} 17. Kh1 $2 {[%emt 0:02:21]} (17. g5 $11) 17... f6 $19 {[%emt 0:02:09]} 18. g5 $2 {[%emt 0:13:03]} (18. Rf1 $17) 18... hxg5 {[%emt 0:01:26]} ({Not} 18... fxe5 19. fxe5 hxg5 20. exd6 Qxd6 21. Bxg5 $16 (21. Bxe4 $2 dxe4 22. Ne5 e3+ 23. Kg1 Qd5 $19) (21. Nxg5 e5 $11)) 19. Rg1 {[%emt 0:01:13]} Ree8 {[%emt 0:05:11]} ({Less strong is} 19... fxe5 20. fxe5 Bc5 21. Be3 $14 (21. dxc5 Nxc5 22. Bxg5 Rf7 $11)) (19... gxf4 $19 {is more deadly.} 20. Bxf4 fxe5 21. Nxe5 Rf7) 20. Be3 {[%emt 0:10:26]} fxe5 $2 {[%emt 0:01:55]} (20... Nh7 $19 {Hoping for ...gxf4.} 21. Rg2 fxe5 22. fxe5 Be7) 21. fxe5 $15 {[%emt 0:00:05]} Be7 {[%emt 0:00:35] And now ...Nh7 would win.} 22. Nxg5 {[%emt 0:03:06]} Bxg5 {[%emt 0:03:50]} 23. Bxg5 {[%emt 0:00:07] [#]} Nh7 $1 {[%emt 0:00:13] Inhibits Bf6.} 24. Be3 {[%emt 0:03:54]} Rf8 {[%emt 0:02:04]} 25. Rg6 {[%emt 0:01:26]} Rf7 {[%emt 0:05:20]} (25... Rf5 $17 26. Rag1 Nf8) 26. Rag1 $1 {[%emt 0:01:05]} Nf8 {[%emt 0:01:53]} 27. Rh6 {[%emt 0:01:28]} Rf5 {[%emt 0:06:45] Inhibits Qh5. aiming for ...Qf7.} 28. Qg4 {[%emt 0:00:45] [#]} ({Better is} 28. Rg2 $1 $15) 28... Rg5 $1 $17 {[%emt 0:00:23]} 29. Rh8+ {[%emt 0:01:38][%mdl 8192]} (29. Qxg5 $17 Nxg5 30. Bxg5) 29... Kxh8 $19 {[%emt 0:02:37]} 30. Qh4+ {[%emt 0:00:05]} Nh7 {[%emt 0:02:00]} (30... Kg8 $142 31. Bxg5 Ng6) 31. Bxg5 {[%emt 0:02:43]} (31. Rxg5 {keeps fighting.} Qf7 32. Rg2) 31... Rf8 {[%emt 0:00:29] Strongly threatening ...Nf2+.} 32. Be3 {[%emt 0:00:58] Against Nf2+} Rf3 {[%emt 0:00:00] Weighted Error Value: White=0.48/Black=0.36} 0-1

[Event "44th Chess Olympiad Open 2022"]
[Site "Chennai"]
[Date "2022.08.05"]
[Round "7.59"]
[White "Cheikhna, Mohamed Lemine"]
[Black "Bullen, Alex"]
[Result "0-1"]
[ECO "B14"]
[WhiteElo "1899"]
[BlackElo "2106"]
[Annotator "NA RC"]
[PlyCount "96"]
[EventDate "2022.07.29"]
[EventType "team-tourn"]
[EventCountry "IND"]
[SourceTitle "playchess.com"]
[Source "ChessBase"]
[SourceQuality "1"]
[WhiteTeam "MTN"]
[BlackTeam "Wales"]
[BlackTeamCountry "WLS"]
[TimeControl "40/5400+30:1800+30"]

1. e4 {[%emt 0:00:07]} c6 {[%emt 0:00:05]} 2. d4 {[%emt 0:00:37]} d5 {[%emt 0:00:06]} 3. exd5 {[%emt 0:00:27]} cxd5 {[%emt 0:00:07]} 4. c4 {[%emt 0:01:17]} Nf6 {[%emt 0:00:07]} 5. Nc3 {[%emt 0:01:13]} e6 {[%emt 0:00:08]} 6. cxd5 {[%emt 0:01:53]} Nxd5 {[%emt 0:00:22]} 7. Nf3 {[%emt 0:00:31]} Bb4 {[%emt 0:01:13]} 8. Bd2 {[%emt 0:01:50]} Nc6 {[%emt 0:00:20]} 9. Bd3 {[%emt 0:01:54]} Be7 {[%emt 0:00:44]} 10. a3 {[%emt 0:01:01]} O-O {[%emt 0:03:56]} 11. O-O {[%emt 0:00:25]} Bf6 {[%emt 0:00:49]} 12. Nxd5 {[%emt 0:05:21]} Qxd5 {[%emt 0:01:31]} 13. Qc2 {[%emt 0:03:32]} g6 {[%emt 0:07:43]} 14. Be4 {[%emt 0:02:09]} Qd7 {[%emt 0:13:09]} 15. Bxc6 {[%emt 0:00:41]} Qxc6 {[%emt 0:02:34]} 16. Qxc6 {[%emt 0:01:02]} bxc6 {[%emt 0:00:06]} 17. Rac1 {[%emt 0:05:58]} Bb7 {[%emt 0:03:10]} 18. Be3 {[%emt 0:13:01]} Rfd8 {[%emt 0:07:32]} 19. Rc5 {[%emt 0:03:26]} Rd5 {[%emt 0:00:00]} 20. Rfc1 {[%emt 0:00:46]} Rad8 {[%emt 0:00:00]} 21. h3 {[%emt 0:03:52]} Rxc5 {[%emt 0:06:21]} 22. Rxc5 {[%emt 0:02:42]} Be7 {[%emt 0:06:05]} 23. Rc3 {[%emt 0:01:53]} Rd5 {[%emt 0:01:03]} 24. Kf1 {[%emt 0:20:19]} a5 {[%emt 0:03:56]} 25. Ke1 {[%emt 0:04:08]} f6 {[%emt 0:02:34]} 26. Rb3 {[%emt 0:11:32]} Rb5 {[%emt 0:02:48]} 27. Rxb5 {[%emt 0:00:30]} cxb5 {[%emt 0:00:08]} 28. Bd2 {[%emt 0:01:12]} Bd8 {[%emt 0:04:50]} 29. Ke2 {[%emt 0:00:29]} Bb6 {[%emt 0:00:52]} 30. Bc3 {[%emt 0:01:32]} Kf7 {[%emt 0:00:42]} 31. Ne1 {[%emt 0:00:27]} Ke7 {[%emt 0:00:51]} 32. f3 {[%emt 0:01:23]} Kd6 {[%emt 0:01:39]} 33. Nd3 {[%emt 0:01:11]} Bd5 {[%emt 0:01:20]} 34. Kd2 {[%emt 0:03:53]} Bc4 {[%emt 0:02:13]} 35. f4 {[%emt 0:01:04]} Kd5 {[%emt 0:05:22]} 36. Ke3 {[%emt 0:00:30]} Bxd3 {[%emt 0:04:43]} 37. Kxd3 {[%emt 0:00:17]} a4 {[%emt 0:00:07]} 38. g4 {[%emt 0:00:57]} f5 {[%emt 0:00:50]} 39. g5 {[%emt 0:01:20]} Ba7 {[%emt 0:00:26]} 40. h4 {[%emt 0:02:07]} Bb6 {[%emt 0:00:06]} 41. b4 {[%emt 0:31:02]} axb3 {[%emt 0:30:29]} 42. Bb2 {[%emt 0:00:20]} Bc7 {[%emt 0:00:36]} 43. Bc1 {[%emt 0:01:17]} Bd6 {[%emt 0:00:36]} 44. Kc3 {[%emt 0:00:00]} b2 {[%emt 0:00:00]} 45. Kxb2 {[%emt 0:00:00]} Kxd4 {[%emt 0:00:00]} 46. Kb3 {[%emt 0:00:00]} Ke4 {[%emt 0:00:00]} 47. Kc3 {[%emt 0:00:00]} Bxf4 {[%emt 0:00:00]} 48. Bxf4 {[%emt 0:00:00]} Kxf4 {[%emt 0:00:00]} 0-1